fUST/lending_fUST_20241028
["ID","MTS","AMOUNT","RATE_DAILY","PERIOD"]
[340915126,1730074259850,-674.22,0.00030136,30]
[340915127,1730074259859,-500.0,0.00030136,30]
[340915128,1730074259869,-500.0,0.00030136,30]
[340915129,1730074259878,-500.0,0.00030136,30]
[340915130,1730074259888,-500.0,0.00030136,30]
[340915131,1730074259898,-933.03,0.00030136,30]
[340915132,1730074259908,-500.0,0.00030136,30]
[340915133,1730074259917,-724.89,0.00030136,30]
[340915134,1730074259927,-2823.63,0.00030136,30]
[340915135,1730074259937,-500.0,0.00030136,30]
[340915136,1730074259946,-6180.55,0.00030136,30]
[340915137,1730074259956,-735.15,0.00030136,30]
[340915138,1730074259965,-500.0,0.00030136,30]
[340915139,1730074259975,-1855.3,0.00030136,30]
[340915140,1730074259985,-1334.81,0.00030136,30]
[340915141,1730074259994,-315.30378112,0.00030136,30]
[340915142,1730074260005,-1109.76,0.00030136,30]
[340915143,1730074260015,-663.98,0.00030136,30]
[340915144,1730074260024,-1009.46,0.00030136,30]
[340915145,1730074260034,-3050.8,0.00030136,30]
[340915146,1730074260044,-500.0,0.00030136,30]
[340915147,1730074260054,-568.24,0.00030136,30]
[340915148,1730074260064,-806.39,0.00030136,30]
[340915149,1730074260074,-274.29791292,0.00030136,30]
[340915150,1730074260084,-1507.59,0.00030136,30]
[340915151,1730074260094,-1592.81,0.00030136,30]
[340915152,1730074260104,-637.59,0.00030136,30]
[340915153,1730074260113,-1511.23,0.00030136,30]
[340915154,1730074260123,-500.0,0.00030136,30]
[340915155,1730074260133,-549.76,0.00030136,30]
[340915156,1730074260143,-1179.95,0.00030136,30]
[340915157,1730074260152,-500.0,0.00030136,30]
[340915158,1730074260162,-1250.12,0.00030136,30]
[340915159,1730074260171,-1285.43,0.00030136,30]
[340915160,1730074260182,-500.0,0.00030136,30]
[340915161,1730074260192,-1657.96,0.00030136,30]
[340915162,1730074260202,-796.13,0.00030136,30]
[340915163,1730074260212,-745.09,0.00030136,30]
[340915164,1730074260222,-500.0,0.00030136,30]
[340915165,1730074260232,-665.73,0.00030136,30]
[340915166,1730074260247,-702.84,0.00030136,30]
[340915167,1730074260256,-924.8,0.00030136,30]
[340915168,1730074260266,-1254.26,0.00030136,30]
[340915169,1730074260277,-500.0,0.00030136,30]
[340915170,1730074260287,-500.0,0.00030136,30]
[340915171,1730074260297,-355.46571251,0.00030136,30]
[340915172,1730074260307,-500.0,0.00030136,30]
[340915173,1730074260316,-500.0,0.00030136,30]
[340915174,1730074260327,-500.0,0.00030136,30]
[340915175,1730074260337,-605.19,0.00030136,30]
[340915176,1730074260347,-350.22492113,0.00030168,5]
[340915177,1730074260356,-500.0,0.000302,10]
[340915178,1730074260366,-500.0,0.000302,10]
[340915179,1730074260376,-691.74768709,0.000302,10]
[340915180,1730074260386,-500.0,0.000302,10]
[340915181,1730074260395,-500.0,0.000302,10]
[340915182,1730074260405,-500.0,0.000302,10]
[340915183,1730074260415,-623.0,0.00030205,2]
[340915184,1730074260426,-200.0,0.00030205,2]
[340915185,1730074260437,-500.0,0.0003041,30]
[340915186,1730074260446,-500.0,0.0003041,30]
[340915187,1730074260455,-500.0,0.0003041,30]
[340915188,1730074260466,-1051.44,0.0003041,30]
[340915189,1730074260475,-500.0,0.0003041,30]
[340915190,1730074260485,-741.84,0.0003041,30]
[340915191,1730074260496,-500.0,0.0003041,30]
[340915192,1730074260505,-500.0,0.0003041,14]
[340915193,1730074260515,-500.0,0.0003041,30]
[340915194,1730074260525,-500.0,0.0003041,30]
[340915195,1730074260661,-500.0,0.0003041,30]
[340915196,1730074260671,-500.0,0.0003041,30]
[340915197,1730074260680,-648.61,0.0003041,30]
[340915198,1730074260690,-559.60120215,0.0003041,30]
[340915199,1730074260700,-500.0,0.0003041,30]
[340915200,1730074260709,-500.0,0.0003041,30]
[340915201,1730074260719,-695.1,0.0003041,30]
[340915202,1730074260728,-864.63,0.0003041,30]
[340915203,1730074260738,-1446.78,0.0003041,30]
[340915204,1730074260747,-1154.94,0.0003041,30]
[340915205,1730074260756,-596.77,0.0003041,30]
[340915206,1730074260765,-1258.05,0.0003041,30]
[340915207,1730074260775,-547.47,0.0003041,30]
[340915208,1730074260784,-500.0,0.0003041,30]
[340915209,1730074260793,-500.0,0.0003041,30]
[340915210,1730074260803,-620.81,0.0003041,30]
[340915211,1730074260812,-722.53,0.0003041,30]
[340915212,1730074260821,-258.87621729,0.0003041,30]
[340915213,1730074260830,-500.0,0.0003041,30]
[340915214,1730074260840,-517.12,0.0003041,30]
[340915215,1730074260849,-500.0,0.0003041,30]
[340915216,1730074260859,-751.72,0.0003041,30]
[340915217,1730074260868,-500.0,0.0003041,30]
[340915218,1730074260879,-607.22,0.0003041,30]
[340915219,1730074260889,-500.0,0.0003041,30]
[340915220,1730074260898,-159.35151004,0.0003041,30]
[340915221,1730074260907,-500.0,0.0003041,30]
[340915222,1730074260917,-500.0,0.0003041,30]
[340915223,1730074260927,-521.92,0.0003041,30]
[340915224,1730074260936,-769.41,0.0003041,30]
[340915225,1730074260946,-566.56,0.0003041,30]
[340915226,1730074260955,-500.0,0.0003041,30]
[340915227,1730074260965,-500.0,0.0003041,30]
[340915228,1730074260974,-691.8,0.0003041,30]
[340915229,1730074260983,-500.0,0.0003041,30]
[340915230,1730074260994,-500.0,0.0003041,30]
[340915231,1730074261003,-500.0,0.0003041,30]
[340915232,1730074261012,-925.69,0.0003041,30]
[340915233,1730074261022,-500.0,0.0003041,30]
[340915234,1730074261031,-500.0,0.0003041,30]
[340915235,1730074261041,-975.57,0.0003041,30]
[340915236,1730074261051,-500.0,0.0003041,30]
[340915237,1730074261060,-500.0,0.0003041,30]
[340915238,1730074261069,-503.52,0.0003041,30]
[340915239,1730074261079,-500.0,0.0003041,30]
[340915240,1730074261089,-500.0,0.0003041,30]
[340915241,1730074261098,-709.11,0.0003041,30]
[340915242,1730074261107,-535.49,0.0003041,30]
[340915243,1730074261117,-542.86,0.0003041,30]
[340915244,1730074261127,-500.0,0.0003041,30]
[340915245,1730074261138,-500.0,0.0003041,30]
[340915246,1730074261147,-500.0,0.0003041,30]
[340915247,1730074261157,-835.15,0.0003041,7]
[340915248,1730074261167,-500.0,0.0003041,30]
[340915249,1730074261176,-500.0,0.0003041,30]
[340915250,1730074261186,-500.0,0.0003041,30]
[340915251,1730074261196,-500.0,0.0003041,30]
[340915252,1730074261206,-625.9,0.0003041,30]
[340915253,1730074261215,-896.65,0.0003041,30]
[340915254,1730074261225,-500.0,0.0003041,30]
[340915255,1730074261235,-500.0,0.0003041,30]
[340915256,1730074261248,-500.0,0.0003041,30]
[340915257,1730074261258,-854.31,0.0003041,30]
[340915258,1730074261269,-500.0,0.0003041,30]
[340915259,1730074261279,-500.0,0.0003041,30]
[340915260,1730074261290,-839.76,0.0003041,30]
[340915261,1730074261300,-500.0,0.0003041,30]
[340915262,1730074261309,-776.41,0.0003041,30]
[340915263,1730074261321,-644.68,0.0003041,30]
[340915264,1730074261331,-500.0,0.0003041,30]
[340915265,1730074261341,-500.0,0.0003041,30]
[340915266,1730074261351,-500.0,0.0003041,30]
[340915267,1730074261361,-500.0,0.0003041,30]
[340915268,1730074261370,-3144.55,0.0003041,30]
[340915269,1730074261380,-874.58,0.0003041,30]
[340915270,1730074261389,-829.08,0.0003041,30]
[340915271,1730074261399,-990.09,0.0003041,30]
[340915272,1730074261409,-592.18,0.0003041,30]
[340915273,1730074261419,-799.86,0.0003041,30]
[340915274,1730074261428,-573.0,0.0003041,30]
[340915275,1730074261437,-1053.98,0.0003041,30]
[340915276,1730074261447,-500.0,0.0003041,30]
[340915277,1730074261456,-887.2,0.0003041,30]
[340915278,1730074261465,-16192.89,0.0003041,30]
[340915279,1730074261475,-500.0,0.0003041,30]
[340915280,1730074261483,-500.0,0.0003041,30]
[340915281,1730074261494,-500.0,0.0003041,30]
[340915282,1730074261504,-4387.63,0.0003041,21]
[340915283,1730074261513,-500.0,0.0003041,30]
[340915284,1730074261523,-500.0,0.0003041,30]
[340915285,1730074261532,-1657.24,0.0003041,30]
[340915286,1730074261542,-674.22,0.0003041,30]
[340915287,1730074261551,-500.0,0.0003041,30]
[340915288,1730074261561,-500.0,0.0003041,30]
[340915289,1730074261570,-500.0,0.0003041,30]
[340915290,1730074261579,-500.0,0.0003041,30]
[340915291,1730074261588,-933.03,0.0003041,30]
[340915292,1730074261597,-500.0,0.0003041,30]
[340915293,1730074261607,-724.89,0.0003041,30]
[340915294,1730074261617,-2823.63,0.0003041,30]
[340915295,1730074261626,-500.0,0.0003041,30]
[340915296,1730074261635,-6180.55,0.0003041,30]
[340915297,1730074261645,-735.15,0.0003041,30]
[340915298,1730074261654,-500.0,0.0003041,30]
[340915299,1730074261666,-1855.3,0.0003041,30]
[340915300,1730074261675,-1334.81,0.0003041,30]
[340915301,1730074261685,-1109.76,0.0003041,30]
[340915302,1730074261694,-663.98,0.0003041,30]
[340915303,1730074261703,-1009.46,0.0003041,30]
[340915304,1730074261713,-3050.8,0.0003041,30]
[340915305,1730074261722,-500.0,0.0003041,30]
[340915306,1730074261732,-568.24,0.0003041,30]
[340915307,1730074261743,-806.39,0.0003041,30]
[340915308,1730074261755,-1507.59,0.0003041,30]
[340915309,1730074261764,-1592.81,0.0003041,30]
[340915310,1730074261773,-637.59,0.0003041,30]
[340915311,1730074261782,-1511.23,0.0003041,30]
[340915312,1730074261791,-500.0,0.0003041,30]
[340915313,1730074261800,-549.76,0.0003041,30]
[340915314,1730074261809,-1179.95,0.0003041,30]
[340915315,1730074261818,-500.0,0.0003041,30]
[340915316,1730074261828,-1250.12,0.0003041,30]
[340915317,1730074261838,-1285.43,0.0003041,30]
[340915318,1730074261848,-500.0,0.0003041,30]
[340915319,1730074261857,-1657.96,0.0003041,30]
[340915320,1730074261867,-796.13,0.0003041,30]
[340915321,1730074261876,-745.09,0.0003041,30]
[340915322,1730074261885,-500.0,0.0003041,30]
[340915323,1730074261895,-665.73,0.0003041,30]
[340915324,1730074261904,-702.84,0.0003041,30]
[340915325,1730074261914,-924.8,0.0003041,30]
[340915326,1730074261924,-1254.26,0.0003041,30]
[340915327,1730074261933,-500.0,0.0003041,30]
[340915328,1730074261943,-500.0,0.0003041,30]
[340915329,1730074261953,-459.65629952,0.0003041,30]
[340915330,1730074261962,-500.0,0.0003041,30]
[340915331,1730074261972,-500.0,0.0003041,30]
[340915332,1730074261981,-605.19,0.0003041,30]
[340915333,1730074261991,-757.79623418,0.00030411,7]
[340915334,1730074262001,-500.0,0.00030411,7]
[340915335,1730074262010,-359.6586696,0.00030411,2]
[340915336,1730074262019,-500.0,0.00030617,3]
[340915337,1730074262029,-500.0,0.00030617,3]
[340915338,1730074262038,-510.0,0.00030617,3]
[340915339,1730074262047,-500.0,0.00030684,30]
[340915340,1730074262056,-500.0,0.00030684,30]
[340915341,1730074262066,-500.0,0.00030684,30]
[340915342,1730074262075,-1051.44,0.00030684,30]
[340915343,1730074262085,-500.0,0.00030684,30]
[340915344,1730074262094,-741.84,0.00030684,30]
[340915345,1730074262104,-500.0,0.00030684,30]
[340915346,1730074262113,-500.0,0.00030684,14]
[340915347,1730074262122,-500.0,0.00030684,30]
[340915348,1730074262132,-500.0,0.00030684,30]
[340915349,1730074262141,-500.0,0.00030684,30]
[340915350,1730074262150,-500.0,0.00030684,30]
[340915351,1730074262159,-648.61,0.00030684,30]
[340915352,1730074262168,-500.0,0.00030684,30]
[340915353,1730074262178,-500.0,0.00030684,30]
[340915354,1730074262187,-695.1,0.00030684,30]
[340915355,1730074262196,-864.63,0.00030684,30]
[340915356,1730074262206,-1154.94,0.00030684,30]
[340915357,1730074262215,-1446.78,0.00030684,30]
[340915358,1730074262224,-596.77,0.00030684,30]
[340915359,1730074262234,-1258.05,0.00030684,30]
[340915360,1730074262247,-547.47,0.00030684,30]
[340915361,1730074262257,-500.0,0.00030684,30]
[340915362,1730074262266,-500.0,0.00030684,30]
[340915363,1730074262275,-620.81,0.00030684,30]
[340915364,1730074262285,-722.53,0.00030684,30]
[340915365,1730074262295,-500.0,0.00030684,30]
[340915366,1730074262304,-517.12,0.00030684,30]
[340915367,1730074262314,-256.14113374,0.00030684,30]
[340915368,1730074262325,-751.72,0.00030684,30]
[340915369,1730074262335,-607.22,0.00030684,30]
[340915370,1730074262345,-500.0,0.00030684,30]
[340915371,1730074262354,-500.0,0.00030684,30]
[340915372,1730074262363,-500.0,0.00030684,30]
[340915373,1730074262373,-500.0,0.00030684,30]
[340915374,1730074262383,-521.92,0.00030684,30]
[340915375,1730074262392,-566.56,0.00030684,30]
[340915376,1730074262401,-769.41,0.00030684,30]
[340915377,1730074262411,-500.0,0.00030684,30]
[340915378,1730074262420,-530.02036311,0.00030684,30]
[340915379,1730074262430,-691.8,0.00030684,30]
[340915380,1730074262439,-500.0,0.00030684,30]
[340915381,1730074262448,-500.0,0.00030684,30]
[340915382,1730074262458,-500.0,0.00030684,30]
[340915383,1730074262468,-925.69,0.00030684,30]
[340915384,1730074262478,-500.0,0.00030684,30]
[340915385,1730074262488,-975.57,0.00030684,30]
[340915386,1730074262497,-500.0,0.00030684,30]
[340915387,1730074262507,-500.0,0.00030684,30]
[340915388,1730074262517,-500.0,0.00030684,30]
[340915389,1730074262526,-503.52,0.00030684,30]
[340915390,1730074262535,-500.0,0.00030684,30]
[340915391,1730074262545,-500.0,0.00030684,30]
[340915392,1730074262554,-709.11,0.00030684,30]
[340915393,1730074262563,-535.49,0.00030684,30]
[340915394,1730074262572,-542.86,0.00030684,30]
[340915395,1730074262581,-500.0,0.00030684,30]
[340915396,1730074262591,-500.0,0.00030684,30]
[340915397,1730074262600,-500.0,0.00030684,30]
[340915398,1730074262609,-835.15,0.00030684,7]
[340915399,1730074262618,-500.0,0.00030684,30]
[340915400,1730074262627,-500.0,0.00030684,30]
[340915401,1730074262637,-500.0,0.00030684,30]
[340915402,1730074262646,-500.0,0.00030684,30]
[340915403,1730074262655,-625.9,0.00030684,30]
[340915404,1730074262665,-896.65,0.00030684,30]
[340915405,1730074262675,-500.0,0.00030684,30]
[340915406,1730074262683,-500.0,0.00030684,30]
[340915407,1730074262692,-500.0,0.00030684,30]
[340915408,1730074262702,-854.31,0.00030684,30]
[340915409,1730074262711,-488.12343904,0.00030684,30]
[340915410,1730074262721,-500.0,0.00030684,30]
[340915411,1730074262731,-839.76,0.00030684,30]
[340915412,1730074262741,-500.0,0.00030684,30]
[340915413,1730074262751,-776.41,0.00030684,30]
[340915414,1730074262759,-644.68,0.00030684,30]
[340915415,1730074262769,-500.0,0.00030684,30]
[340915416,1730074262778,-500.0,0.00030684,30]
[340915417,1730074262787,-500.0,0.00030684,30]
[340915418,1730074262798,-500.0,0.00030684,30]
[340915419,1730074262807,-3144.55,0.00030684,30]
[340915420,1730074262816,-874.58,0.00030684,30]
[340915421,1730074262828,-829.08,0.00030684,30]
[340915422,1730074262837,-990.09,0.00030684,30]
[340915423,1730074262847,-592.18,0.00030684,30]
[340915424,1730074262856,-799.86,0.00030684,30]
[340915425,1730074262867,-573.0,0.00030684,30]
[340915426,1730074262876,-1053.98,0.00030684,30]
[340915427,1730074262886,-500.0,0.00030684,30]
[340915428,1730074262895,-887.2,0.00030684,30]
[340915429,1730074262903,-16192.89,0.00030684,30]
[340915430,1730074262913,-500.0,0.00030684,30]
[340915431,1730074262921,-500.0,0.00030684,30]
[340915432,1730074262930,-500.0,0.00030684,30]
[340915433,1730074262940,-4387.63,0.00030684,21]
[340915434,1730074262949,-500.0,0.00030684,30]
[340915435,1730074262959,-500.0,0.00030684,30]
[340915436,1730074262969,-1657.24,0.00030684,30]
[340915437,1730074262978,-674.22,0.00030684,30]
[340915438,1730074262988,-500.0,0.00030684,30]
[340915439,1730074262997,-500.0,0.00030684,30]
[340915440,1730074263006,-500.0,0.00030684,30]
[340915441,1730074263015,-500.0,0.00030684,30]
[340915442,1730074263025,-933.03,0.00030684,30]
[340915443,1730074263034,-500.0,0.00030684,30]
[340915444,1730074263043,-724.89,0.00030684,30]
[340915445,1730074263053,-2823.63,0.00030684,30]
[340915446,1730074263063,-500.0,0.00030684,30]
[340915447,1730074263073,-6180.55,0.00030684,30]
[340915448,1730074263083,-735.15,0.00030684,30]
[340915449,1730074263092,-500.0,0.00030684,30]
[340915450,1730074263101,-1855.3,0.00030684,30]
[340915451,1730074263111,-1334.81,0.00030684,30]
[340915452,1730074263120,-1109.76,0.00030684,30]
[340915453,1730074263130,-663.98,0.00030684,30]
[340915454,1730074263139,-1009.46,0.00030684,30]
[340915455,1730074263149,-3050.8,0.00030684,30]
[340915456,1730074263159,-500.0,0.00030684,30]
[340915457,1730074263168,-568.24,0.00030684,30]
[340915458,1730074263178,-806.39,0.00030684,30]
[340915459,1730074263187,-1507.59,0.00030684,30]
[340915460,1730074263196,-1592.81,0.00030684,30]
[340915461,1730074263206,-637.59,0.00030684,30]
[340915462,1730074263215,-1511.23,0.00030684,30]
[340915463,1730074263225,-500.0,0.00030684,30]
[340915464,1730074263234,-549.76,0.00030684,30]
[340915465,1730074263248,-1179.95,0.00030684,30]
[340915466,1730074263258,-500.0,0.00030684,30]
[340915467,1730074263268,-1250.12,0.00030684,30]
[340915468,1730074263278,-1285.43,0.00030684,30]
[340915469,1730074263288,-500.0,0.00030684,30]
[340915470,1730074263298,-1657.96,0.00030684,30]
[340915471,1730074263308,-796.13,0.00030684,30]
[340915472,1730074263318,-745.09,0.00030684,30]
[340915473,1730074263330,-500.0,0.00030684,30]
[340915474,1730074263339,-665.73,0.00030684,30]
[340915475,1730074263349,-702.84,0.00030684,30]
[340915476,1730074263358,-924.8,0.00030684,30]
[340915477,1730074263368,-1254.26,0.00030684,30]
[340915478,1730074263378,-500.0,0.00030684,30]
[340915479,1730074263387,-500.0,0.00030684,30]
[340915480,1730074263397,-500.0,0.00030684,30]
[340915481,1730074263406,-500.0,0.00030684,30]
[340915482,1730074263416,-605.19,0.00030684,30]
[340915483,1730074263426,-2000.0,0.00030687,2]
[340915484,1730074263436,-2000.0,0.00030687,5]
[340915485,1730074263446,-612.0,0.000307,2]
[340915486,1730074263456,-1500.0,0.00030746,5]
[340915487,1730074263466,-1500.0,0.00030746,5]
[340915488,1730074263475,-1500.0,0.00030746,5]
[340915489,1730074263485,-1500.0,0.00030746,5]
[340915490,1730074263496,-1500.0,0.00030746,5]
[340915491,1730074263506,-1500.0,0.00030746,5]
[340915492,1730074263516,-1130.40321027,0.00030746,5]
[340915493,1730074263525,-502.57141215,0.00030746,5]
[340915494,1730074263535,-1500.0,0.00030746,5]
[340915495,1730074263545,-1500.0,0.00030746,5]
[340915496,1730074263554,-500.0,0.00030958,30]
[340915497,1730074263564,-500.0,0.00030958,30]
[340915498,1730074263574,-492.8827976,0.00030958,30]
[340915499,1730074263583,-1051.44,0.00030958,30]
[340915500,1730074263593,-500.0,0.00030958,30]
[340915501,1730074263602,-741.84,0.00030958,30]
[340915502,1730074263612,-500.0,0.00030958,30]
[340915503,1730074263622,-500.0,0.00030958,14]
[340915504,1730074263631,-500.0,0.00030958,30]
[340915505,1730074263641,-500.0,0.00030958,30]
[340915506,1730074263782,-500.0,0.00030958,30]
[340915507,1730074263792,-500.0,0.00030958,30]
[340915508,1730074263802,-648.61,0.00030958,30]
[340915509,1730074263812,-500.0,0.00030958,30]
[340915510,1730074263822,-500.0,0.00030958,30]
[340915511,1730074263831,-695.1,0.00030958,30]
[340915512,1730074263841,-864.63,0.00030958,30]
[340915513,1730074263850,-1154.94,0.00030958,30]
[340915514,1730074263860,-1446.78,0.00030958,30]
[340915515,1730074263870,-596.77,0.00030958,30]
[340915516,1730074263880,-1258.05,0.00030958,30]
[340915517,1730074263890,-547.47,0.00030958,30]
[340915518,1730074263900,-500.0,0.00030958,30]
[340915519,1730074263910,-190.5603122,0.00030958,30]
[340915520,1730074263919,-620.81,0.00030958,30]
[340915521,1730074263929,-722.53,0.00030958,30]
[340915522,1730074263938,-500.0,0.00030958,30]
[340915523,1730074263948,-517.12,0.00030958,30]
[340915524,1730074263958,-751.72,0.00030958,30]
[340915525,1730074263968,-607.22,0.00030958,30]
[340915526,1730074263977,-500.0,0.00030958,30]
[340915527,1730074263986,-500.0,0.00030958,30]
[340915528,1730074263996,-500.0,0.00030958,30]
[340915529,1730074264006,-500.0,0.00030958,30]
[340915530,1730074264016,-521.92,0.00030958,30]
[340915531,1730074264026,-566.56,0.00030958,30]
[340915532,1730074264037,-769.41,0.00030958,30]
[340915533,1730074264047,-500.0,0.00030958,30]
[340915534,1730074264057,-691.8,0.00030958,30]
[340915535,1730074264066,-500.0,0.00030958,30]
[340915536,1730074264076,-500.0,0.00030958,30]
[340915537,1730074264086,-500.0,0.00030958,30]
[340915538,1730074264096,-925.69,0.00030958,30]
[340915539,1730074264105,-500.0,0.00030958,30]
[340915540,1730074264115,-975.57,0.00030958,30]
[340915541,1730074264124,-500.0,0.00030958,30]
[340915542,1730074264133,-488.36212153,0.00030958,30]
[340915543,1730074264143,-500.0,0.00030958,30]
[340915544,1730074264152,-503.52,0.00030958,30]
[340915545,1730074264162,-500.0,0.00030958,30]
[340915546,1730074264172,-448.71609407,0.00030958,30]
[340915547,1730074264181,-709.11,0.00030958,30]
[340915548,1730074264191,-535.49,0.00030958,30]
[340915549,1730074264201,-542.86,0.00030958,30]
[340915550,1730074264211,-500.0,0.00030958,30]
[340915551,1730074264220,-500.0,0.00030958,30]
[340915552,1730074264230,-500.0,0.00030958,30]
[340915553,1730074264241,-835.15,0.00030958,7]
[340915554,1730074264253,-500.0,0.00030958,30]
[340915555,1730074264264,-500.0,0.00030958,30]
[340915556,1730074264273,-500.0,0.00030958,30]
[340915557,1730074264282,-500.0,0.00030958,30]
[340915558,1730074264293,-625.9,0.00030958,30]
[340915559,1730074264303,-896.65,0.00030958,30]
[340915560,1730074264313,-500.0,0.00030958,30]
[340915561,1730074264324,-500.0,0.00030958,30]
[340915562,1730074264335,-500.0,0.00030958,30]
[340915563,1730074264345,-854.31,0.00030958,30]
[340915564,1730074264355,-511.55428554,0.00030958,30]
[340915565,1730074264364,-839.76,0.00030958,30]
[340915566,1730074264374,-500.0,0.00030958,30]
[340915567,1730074264383,-776.41,0.00030958,30]
[340915568,1730074264393,-644.68,0.00030958,30]
[340915569,1730074264403,-500.0,0.00030958,30]
[340915570,1730074264412,-500.0,0.00030958,30]
[340915571,1730074264422,-412.67046927,0.00030958,30]
[340915572,1730074264431,-500.0,0.00030958,30]
[340915573,1730074264441,-3144.55,0.00030958,30]
[340915574,1730074264451,-874.58,0.00030958,30]
[340915575,1730074264461,-829.08,0.00030958,30]
[340915576,1730074264471,-990.09,0.00030958,30]
[340915577,1730074264481,-592.18,0.00030958,30]
[340915578,1730074264491,-799.86,0.00030958,30]
[340915579,1730074264501,-573.0,0.00030958,30]
[340915580,1730074264510,-1053.98,0.00030958,30]
[340915581,1730074264521,-500.0,0.00030958,30]
[340915582,1730074264530,-887.2,0.00030958,30]
[340915583,1730074264539,-16192.89,0.00030958,30]
[340915584,1730074264548,-499.94429743,0.00030958,30]
[340915585,1730074264558,-500.0,0.00030958,30]
[340915586,1730074264568,-500.0,0.00030958,30]
[340915587,1730074264577,-4387.63,0.00030958,21]
[340915588,1730074264587,-500.0,0.00030958,30]
[340915589,1730074264596,-203.71392268,0.00030958,30]
[340915590,1730074264605,-1657.24,0.00030958,30]
[340915591,1730074264614,-674.22,0.00030958,30]
[340915592,1730074264623,-500.0,0.00030958,30]
[340915593,1730074264632,-500.0,0.00030958,30]
[340915594,1730074264642,-500.0,0.00030958,30]
[340915595,1730074264651,-500.0,0.00030958,30]
[340915596,1730074264660,-933.03,0.00030958,30]
[340915597,1730074264670,-500.0,0.00030958,30]
[340915598,1730074264679,-724.89,0.00030958,30]
[340915599,1730074264689,-2823.63,0.00030958,30]
[340915600,1730074264698,-500.0,0.00030958,30]
[340915601,1730074264707,-6180.55,0.00030958,30]
[340915602,1730074264717,-735.15,0.00030958,30]
[340915603,1730074264726,-500.0,0.00030958,30]
[340915604,1730074264735,-1855.3,0.00030958,30]
[340915605,1730074264746,-1334.81,0.00030958,30]
[340915606,1730074264756,-1109.76,0.00030958,30]
[340915607,1730074264766,-663.98,0.00030958,30]
[340915608,1730074264775,-1009.46,0.00030958,30]
[340915609,1730074264785,-3050.8,0.00030958,30]
[340915610,1730074264794,-500.0,0.00030958,30]
[340915611,1730074264803,-568.24,0.00030958,30]
[340915612,1730074264812,-806.39,0.00030958,30]
[340915613,1730074264821,-1507.59,0.00030958,30]
[340915614,1730074264831,-1592.81,0.00030958,30]
[340915615,1730074264840,-637.59,0.00030958,30]
[340915616,1730074264849,-1511.23,0.00030958,30]
[340915617,1730074264858,-500.0,0.00030958,30]
[340915618,1730074264868,-549.76,0.00030958,30]
[340915619,1730074264878,-1179.95,0.00030958,30]
[340915620,1730074264886,-500.0,0.00030958,30]
[340915621,1730074264895,-1250.12,0.00030958,30]
[340915622,1730074264904,-1285.43,0.00030958,30]
[340915623,1730074264914,-500.0,0.00030958,30]
[340915624,1730074264923,-1657.96,0.00030958,30]
[340915625,1730074264933,-796.13,0.00030958,30]